fUST/lending_fUST_20240625
["ID","MTS","AMOUNT","RATE_DAILY","PERIOD"]
[330352096,1719301832072,-2417.34559194,0.00016437,2]
[330352098,1719301832082,-179.88158432,0.00016711,2]
[330352099,1719301832091,-512.52901576,0.00016985,2]
[330352101,1719301832100,-990.76792637,0.00017259,2]
[330352102,1719301832112,-165.17867251,0.00017259,2]
[330352103,1719301832121,-318.68479359,0.00017533,2]
[330352104,1719301832134,-876.0,0.00018636,2]
[330352107,1719301832143,-3862.15768242,0.000188,2]
[330352108,1719301832152,-333.87597908,0.0001887,2]
[330352109,1719301832161,-267.05408446,0.00018899,2]
[330352110,1719301832170,-22056.29836619,0.00018899,2]
[330352111,1719301832184,-5023.49398917,0.000189,2]
[330352112,1719301832193,-53741.64956857,0.0001897,2]
[330352238,1719301840269,-705.69717144,0.000189,2]
[330352404,1719302396895,-414677.7285739,0.00026,120]
[330352405,1719302405695,273.37336231,9.9e-05,2]
[330352406,1719302413967,273.37336231,9.9e-05,2]
[330352407,1719302417095,-299713.67303393,0.00025,60]
[330352408,1719302417119,-2543.15318312,0.00025,30]
[330352409,1719302417155,-400.0,0.00027397,60]
[330352410,1719302417180,-1745.07026675,0.000275,30]
[330352411,1719302417207,-1206.67266007,0.00027652,30]
[330352412,1719302417231,-177.66073183,0.00027768,120]
[330352413,1719302417255,-12166.18367155,0.00028,30]
[330352414,1719302417280,-200.0,0.00028902,120]
[330352415,1719302417308,-515.32561346,0.000298,120]
[330352416,1719302417335,-460.10434922,0.0003,30]
[330352417,1719302417358,-4042.21391763,0.0003008,30]
[330352418,1719302417382,-400.0,0.00030137,60]
[330352419,1719302417411,-2451.74808458,0.000325,60]
[330352420,1719302417449,-414.86806481,0.00032877,60]
[330352421,1719302422496,273.37336231,9.9e-05,2]
[330352422,1719302424483,161.89,0.00032603,30]
[330352441,1719302430715,273.37336231,9.9e-05,2]
[330352475,1719302440019,273.37336231,9.9e-05,2]
[330352476,1719302449091,273.37336231,9.9e-05,2]
[330352477,1719302457999,273.37336231,9.9e-05,2]
[330352478,1719302466074,273.37336231,9.9e-05,2]
[330352479,1719302474983,273.37336231,9.9e-05,2]
[330352480,1719302482970,273.37336231,9.9e-05,2]
[330352481,1719302491769,273.37336231,9.9e-05,2]
[330352482,1719302499826,273.37336231,9.9e-05,2]
[330352483,1719302508363,273.37336231,9.9e-05,2]
[330352484,1719302517005,273.37336231,9.9e-05,2]
[330352485,1719302525259,273.37336231,9.9e-05,2]
[330352486,1719302525495,155.05112042,0.00012,2]
[330352487,1719302530152,157.48673639,0.00012,2]
[330352488,1719302533763,273.37336231,9.9e-05,2]
[330352489,1719302534693,155.00500362,0.00012,2]
[330352490,1719302540835,155.36849882,0.00012,2]
[330352491,1719302542663,273.37336231,9.9e-05,2]
[330352492,1719302544828,842.74466502,0.00012,2]
[330352493,1719302548186,172.27287177,0.00012,2]
[330352494,1719302549613,154.82195475,0.00012,2]
[330352495,1719302551054,273.37336231,9.9e-05,2]
[330352496,1719302559444,273.37336231,9.9e-05,2]
[330352498,1719302568732,273.37336231,9.9e-05,2]
[330352499,1719302576824,273.37336231,9.9e-05,2]
[330352500,1719302585247,273.37336231,9.9e-05,2]
[330352501,1719302593540,273.37336231,9.9e-05,2]
[330352502,1719302601639,273.37336231,9.9e-05,2]
[330352503,1719302609955,273.37336231,9.9e-05,2]
[330352504,1719302618243,273.37336231,9.9e-05,2]
[330352508,1719302627068,273.37336231,9.9e-05,2]
[330352510,1719302630023,529.71924554,0.00012,2]
[330352511,1719302630356,228.22008011,9.9e-05,2]
[330352512,1719302635019,273.37336231,9.9e-05,2]
[330352513,1719302643653,273.37336231,9.9e-05,2]
[330352514,1719302652240,273.37336231,9.9e-05,2]
[330352515,1719302656202,272.75495941,0.00012,2]
[330352516,1719302658027,162.64493492,0.00012,2]
[330352517,1719302659105,157.20552492,0.00012,2]
[330352518,1719302660108,311.33993997,0.00012,2]
[330352519,1719302660523,273.37336231,9.9e-05,2]
[330352520,1719302668524,273.37336231,9.9e-05,2]
[330352521,1719302669630,4698.5206813,0.00012,2]
[330352522,1719302676623,273.37336231,9.9e-05,2]
[330352523,1719302678599,531.18655421,0.00012,2]
[330352524,1719302684818,273.37336231,9.9e-05,2]
[330352525,1719302692807,273.37336231,9.9e-05,2]
[330352526,1719302701024,273.37336231,9.9e-05,2]
[330352527,1719302709236,273.37336231,9.9e-05,2]
[330352530,1719302718448,273.37336231,9.9e-05,2]
[330352532,1719302726796,273.37336231,9.9e-05,2]
[330352533,1719302734952,273.37336231,9.9e-05,2]
[330352534,1719302742517,531.18655421,0.00012,2]
[330352535,1719302742976,273.37336231,9.9e-05,2]
[330352536,1719302751187,273.37336231,9.9e-05,2]
[330352537,1719302759317,273.37336231,9.9e-05,2]
[330352538,1719302767939,273.37336231,9.9e-05,2]
[330352539,1719302776224,273.37336231,9.9e-05,2]
[330352540,1719302784741,273.37336231,9.9e-05,2]
[330352541,1719302793744,273.37336231,9.9e-05,2]
[330352543,1719302801785,273.37336231,9.9e-05,2]
[330352545,1719302809960,273.37336231,9.9e-05,2]
[330352546,1719302818457,273.37336231,9.9e-05,2]
[330352547,1719302827811,273.37336231,9.9e-05,2]
[330352550,1719302835781,273.37336231,9.9e-05,2]
[330352551,1719302844057,273.37336231,9.9e-05,2]
[330352552,1719302850686,292.33986916,9.9e-05,2]
[330352553,1719302852293,273.37336231,9.9e-05,2]
[330352554,1719302861222,273.37336231,9.9e-05,2]
[330352555,1719302861838,155.36849882,0.00012,2]
[330352556,1719302864486,154.82195475,0.00012,2]
[330352557,1719302865217,164.92945559,0.00012,2]
[330352558,1719302866170,172.27287177,0.00012,2]
[330352559,1719302867553,475.70327333,0.00012,2]
[330352560,1719302870240,273.37336231,9.9e-05,2]
[330352562,1719302878666,273.37336231,9.9e-05,2]
[330352563,1719302886721,273.37336231,9.9e-05,2]
[330352571,1719302894900,273.37336231,9.9e-05,2]
[330352572,1719302903221,273.37336231,9.9e-05,2]
[330352574,1719302906972,529.71924554,0.00012,2]
[330352575,1719302907940,311.33993997,0.00012,2]
[330352576,1719302909903,228.22008011,0.00012,2]
[330352577,1719302912591,273.37336231,9.9e-05,2]
[330352578,1719302918022,162.64493492,0.00012,2]
[330352579,1719302919481,4698.5206813,0.00012,2]
[330352580,1719302920246,157.20552492,0.00012,2]
[330352581,1719302921084,273.37336231,9.9e-05,2]
[330352582,1719302924486,155.03565756,0.00012,2]
[330352583,1719302930102,273.37336231,9.9e-05,2]
[330352589,1719302938854,273.37336231,9.9e-05,2]
[330352590,1719302947080,273.37336231,9.9e-05,2]
[330352593,1719302955490,273.37336231,9.9e-05,2]
[330352621,1719302965154,273.37336231,9.9e-05,2]
[330352622,1719302971135,272.75495941,0.00012,2]
[330352627,1719302973362,273.37336231,9.9e-05,2]
[330352635,1719302982493,273.37336231,9.9e-05,2]
[330352637,1719302991807,273.37336231,9.9e-05,2]
[330352640,1719303000416,273.37336231,9.9e-05,2]
[330352641,1719303009255,273.37336231,9.9e-05,2]
[330352643,1719303017856,273.37336231,9.9e-05,2]
[330352649,1719303026660,273.37336231,9.9e-05,2]
[330352698,1719303032366,-159.63848383,0.00014001,2]
[330352700,1719303032375,-842.74466502,0.00014001,2]
[330352702,1719303032384,-11120.42606657,0.00016057,2]
[330352704,1719303032393,-1329.2387037,0.00016417,2]
[330352706,1719303032402,-1168.88113981,0.00016548,2]
[330352736,1719303035274,273.37336231,9.9e-05,2]
[330352754,1719303038283,-1070.47903629,0.00016548,2]
[330352755,1719303038293,-236.3764713,0.0001666,2]
[330352756,1719303038302,-376.0677222,0.00017178,2]
[330352757,1719303038312,-7415.92677021,0.00017326,2]
[330352758,1719303038323,-1371.40881746,0.00017326,2]
[330352890,1719303041841,-418.4865919,0.00017326,2]
[330352966,1719303043471,273.37336231,9.9e-05,2]
[330353006,1719303052026,273.37336231,9.9e-05,2]
[330353007,1719303060474,273.37336231,9.9e-05,2]
[330353008,1719303069655,273.37336231,9.9e-05,2]
[330353009,1719303078245,273.37336231,9.9e-05,2]
[330353010,1719303078805,842.74466502,0.00012,2]
[330353011,1719303086626,273.37336231,9.9e-05,2]
[330353012,1719303091936,11120.42606657,0.00012,2]
[330353013,1719303094936,273.37336231,9.9e-05,2]
[330353014,1719303103463,273.37336231,9.9e-05,2]
[330353015,1719303111635,273.37336231,9.9e-05,2]
[330353016,1719303113816,844.30927302,0.00012,2]
[330353017,1719303116560,531.18655421,0.00012,2]
[330353018,1719303120245,273.37336231,9.9e-05,2]
[330353019,1719303128739,273.37336231,9.9e-05,2]
[330353020,1719303136933,3.03105318,0.00012,2]
[330353021,1719303136968,2464.81003187,0.00012,2]
[330353022,1719303138170,273.37336231,9.9e-05,2]
[330353023,1719303146381,273.37336231,9.9e-05,2]
[330353024,1719303155112,273.37336231,9.9e-05,2]
[330353025,1719303163747,273.37336231,9.9e-05,2]
[330353026,1719303172278,273.37336231,9.9e-05,2]
[330353027,1719303180580,273.37336231,9.9e-05,2]
[330353028,1719303188815,273.37336231,9.9e-05,2]
[330353029,1719303197096,273.37336231,9.9e-05,2]
[330353030,1719303205314,273.37336231,9.9e-05,2]
[330353031,1719303213803,273.37336231,9.9e-05,2]
[330353032,1719303219177,157.20552492,0.00012,2]
[330353033,1719303222091,273.37336231,9.9e-05,2]
[330353034,1719303230320,273.37336231,9.9e-05,2]
[330353035,1719303239252,273.37336231,9.9e-05,2]
[330353036,1719303247618,273.37336231,9.9e-05,2]
[330353037,1719303255832,273.37336231,9.9e-05,2]
[330353038,1719303263844,273.37336231,9.9e-05,2]
[330353039,1719303272080,273.37336231,9.9e-05,2]
[330353040,1719303279195,157.20552492,0.00012,2]
[330353041,1719303280119,273.37336231,9.9e-05,2]
[330353042,1719303288725,273.37336231,9.9e-05,2]
[330353043,1719303296911,273.37336231,9.9e-05,2]
[330353044,1719303305564,273.37336231,9.9e-05,2]
[330353045,1719303314582,273.37336231,9.9e-05,2]
[330353046,1719303319163,157.20552492,0.00012,2]
[330353047,1719303323894,273.37336231,9.9e-05,2]
[330353048,1719303332084,273.37336231,9.9e-05,2]
[330353049,1719303340157,273.37336231,9.9e-05,2]
[330353050,1719303348494,273.37336231,9.9e-05,2]
[330353051,1719303356479,273.37336231,9.9e-05,2]
[330353052,1719303364673,273.37336231,9.9e-05,2]
[330353053,1719303373496,273.37336231,9.9e-05,2]
[330353054,1719303381175,157.20552492,0.00012,2]
[330353055,1719303382246,273.37336231,9.9e-05,2]
[330353056,1719303390730,273.37336231,9.9e-05,2]
[330353057,1719303399883,273.37336231,9.9e-05,2]
[330353058,1719303407921,273.37336231,9.9e-05,2]
[330353059,1719303416274,273.37336231,9.9e-05,2]
[330353060,1719303424446,273.37336231,9.9e-05,2]
[330353061,1719303428560,531.18655421,0.00012,2]
[330353062,1719303433233,273.37336231,9.9e-05,2]
[330353063,1719303441212,273.37336231,9.9e-05,2]
[330353064,1719303450166,273.37336231,9.9e-05,2]
[330353065,1719303458412,273.37336231,9.9e-05,2]
[330353066,1719303466932,273.37336231,9.9e-05,2]
[330353067,1719303475489,273.37336231,9.9e-05,2]
[330353068,1719303483534,273.37336231,9.9e-05,2]
[330353069,1719303493028,273.37336231,9.9e-05,2]
[330353070,1719303501637,273.37336231,9.9e-05,2]
[330353071,1719303509966,273.37336231,9.9e-05,2]
[330353072,1719303518295,273.37336231,9.9e-05,2]
[330353073,1719303519021,155.1633561,0.00012,2]
[330353074,1719303526529,273.37336231,9.9e-05,2]
[330353075,1719303529719,1284.46803157,0.00012,2]
[330353076,1719303530241,200.72452158,0.00012,2]
[330353077,1719303535271,273.37336231,9.9e-05,2]
[330353078,1719303544355,273.37336231,9.9e-05,2]
[330353079,1719303552927,273.37336231,9.9e-05,2]
[330353080,1719303561774,273.37336231,9.9e-05,2]
[330353081,1719303570016,273.37336231,9.9e-05,2]
[330353082,1719303579054,273.37336231,9.9e-05,2]
[330353083,1719303587761,273.37336231,9.9e-05,2]
[330353084,1719303595816,273.37336231,9.9e-05,2]
[330353085,1719303604293,273.37336231,9.9e-05,2]
[330353086,1719303612756,273.37336231,9.9e-05,2]
[330353087,1719303621561,273.37336231,9.9e-05,2]
[330353088,1719303629641,273.37336231,9.9e-05,2]
[330353089,1719303637893,273.37336231,9.9e-05,2]
[330353090,1719303646730,273.37336231,9.9e-05,2]
[330353091,1719303655566,273.37336231,9.9e-05,2]
[330353092,1719303664145,273.37336231,9.9e-05,2]
[330353093,1719303672325,273.37336231,9.9e-05,2]
[330353094,1719303680351,273.37336231,9.9e-05,2]
[330353095,1719303684537,933.08575257,0.00012,2]
[330353096,1719303688587,273.37336231,9.9e-05,2]
[330353097,1719303696662,273.37336231,9.9e-05,2]
[330353098,1719303702631,524.47181177,0.00012,2]
[330353099,1719303704945,273.37336231,9.9e-05,2]
[330353100,1719303712957,273.37336231,9.9e-05,2]
[330353101,1719303721246,273.37336231,9.9e-05,2]
[330353102,1719303729291,273.37336231,9.9e-05,2]
[330353103,1719303738131,273.37336231,9.9e-05,2]
[330353104,1719303746144,273.37336231,9.9e-05,2]
[330353105,1719303754403,273.37336231,9.9e-05,2]
[330353106,1719303766662,273.37336231,9.9e-05,2]
[330353107,1719303774879,273.37336231,9.9e-05,2]
[330353108,1719303783400,273.37336231,9.9e-05,2]
[330353109,1719303792537,273.37336231,9.9e-05,2]
[330353110,1719303801751,273.37336231,9.9e-05,2]
[330353111,1719303810214,273.37336231,9.9e-05,2]
[330353112,1719303818862,273.37336231,9.9e-05,2]
[330353113,1719303827094,273.37336231,9.9e-05,2]
[330353114,1719303835072,273.37336231,9.9e-05,2]
[330353115,1719303843116,273.37336231,9.9e-05,2]
[330353116,1719303851768,273.37336231,9.9e-05,2]
[330353117,1719303862099,273.37336231,9.9e-05,2]
[330353118,1719303870061,273.37336231,9.9e-05,2]
[330353119,1719303878683,273.37336231,9.9e-05,2]
[330353120,1719303886592,273.37336231,9.9e-05,2]
[330353121,1719303894910,273.37336231,9.9e-05,2]
[330353122,1719303903545,273.37336231,9.9e-05,2]
[330353123,1719303912378,273.37336231,9.9e-05,2]
[330353124,1719303921421,273.37336231,9.9e-05,2]
[330353125,1719303929656,273.37336231,9.9e-05,2]
[330353126,1719303938447,273.37336231,9.9e-05,2]
[330353127,1719303946418,273.37336231,9.9e-05,2]
[330353128,1719303954730,273.37336231,9.9e-05,2]
[330353129,1719303962793,273.37336231,9.9e-05,2]
[330353130,1719303971822,273.37336231,9.9e-05,2]
[330353131,1719303976849,154.82195475,0.00012,2]
[330353132,1719303980434,273.37336231,9.9e-05,2]
[330353133,1719303989821,273.37336231,9.9e-05,2]
[330353134,1719303990441,465.42723625,0.00012,4]
[330353135,1719303998140,273.37336231,9.9e-05,2]
[330353136,1719304006933,273.37336231,9.9e-05,2]
[330353137,1719304015032,273.37336231,9.9e-05,2]
[330353138,1719304023360,273.37336231,9.9e-05,2]
[330353139,1719304031739,273.37336231,9.9e-05,2]
[330353140,1719304041174,273.37336231,9.9e-05,2]
[330353141,1719304049991,273.37336231,9.9e-05,2]
[330353142,1719304058843,273.37336231,9.9e-05,2]
[330353143,1719304067439,273.37336231,9.9e-05,2]
[330353144,1719304072103,159.70589002,0.00012,2]
[330353145,1719304073900,10560.92625688,0.00012,2]
[330353146,1719304073950,842.74466502,0.00012,2]
[330353147,1719304075865,273.37336231,9.9e-05,2]
[330353148,1719304081335,154.99369434,0.00012,2]
[330353149,1719304083780,273.37336231,9.9e-05,2]
[330353150,1719304092125,11120.42606657,0.00012,2]
[330353151,1719304093114,273.37336231,9.9e-05,2]
[330353152,1719304101123,273.37336231,9.9e-05,2]
[330353153,1719304107720,159.63848383,0.00012,2]
[330353154,1719304110022,273.37336231,9.9e-05,2]
[330353155,1719304110811,154.83742071,0.00012,2]
[330353156,1719304118006,273.37336231,9.9e-05,2]
[330353157,1719304126807,273.37336231,9.9e-05,2]
[330353158,1719304134901,273.37336231,9.9e-05,2]
[330353159,1719304143871,842.74466502,0.00012,2]
[330353160,1719304144584,273.37336231,9.9e-05,2]
[330353161,1719304149113,-524.47181177,0.00014003,2]
[330353162,1719304149135,-373.8816229,0.00014075,2]
[330353163,1719304149163,-7978.10265247,0.00014936,2]
[330353164,1719304152623,273.37336231,9.9e-05,2]
[330353165,1719304160852,273.37336231,9.9e-05,2]
[330353166,1719304168801,273.37336231,9.9e-05,2]
[330353167,1719304179344,273.37336231,9.9e-05,2]
[330353168,1719304187912,273.37336231,9.9e-05,2]
[330353169,1719304196576,273.37336231,9.9e-05,2]
[330353170,1719304204603,273.37336231,9.9e-05,2]
[330353171,1719304213456,273.37336231,9.9e-05,2]
[330353172,1719304222073,273.37336231,9.9e-05,2]
[330353173,1719304231148,273.37336231,9.9e-05,2]
[330353366,1719304241585,273.37336231,9.9e-05,2]
[330353597,1719304248546,273.37336231,9.9e-05,2]
[330353598,1719304256608,273.37336231,9.9e-05,2]
[330353599,1719304264852,273.37336231,9.9e-05,2]
[330353600,1719304267887,842.74466502,0.00012,2]
[330353601,1719304273278,273.37336231,9.9e-05,2]
[330353602,1719304282163,273.37336231,9.9e-05,2]
[330353603,1719304290168,273.37336231,9.9e-05,2]
[330353604,1719304299003,273.37336231,9.9e-05,2]
[330353605,1719304307213,273.37336231,9.9e-05,2]
[330353606,1719304315979,273.37336231,9.9e-05,2]
[330353607,1719304371550,898.61359266,0.00012,2]
[330353608,1719304374694,154.99545271,0.00012,2]
[330353610,1719304660767,373.8816229,9.999e-05,2]
[330353611,1719304772964,155.00628785,9.999e-05,2]
[330353612,1719304846840,24900.0,0.00013817,2]
[330353614,1719304920853,233.00146682,9.999e-05,2]
[330353615,1719305021895,262.3705787,0.0001212,2]
[330353616,1719305103866,274.58747007,9.999e-05,2]
[330353617,1719305205576,166.56800558,9.999e-05,2]
[330353618,1719305215146,-842.74466502,0.00014003,2]
[330353619,1719305215166,-720.24519337,0.00014176,2]
[330353620,1719305215186,-300.0,0.00014999,2]
[330353621,1719305215207,-300.0,0.00014999,2]
[330353622,1719305215228,-2417.34559194,0.00015,2]
[330353623,1719305215247,-2825.49865465,0.00015,2]
[330353624,1719305215268,-286.39912426,0.00015119,2]
[330353625,1719305215287,-867.4996286,0.00015571,2]
[330353626,1719305215312,-316.73396213,0.00015732,2]
[330353627,1719305258988,706.11020178,0.0001212,2]
[330353676,1719305438259,1000.0,9.745e-05,2]
[330353731,1719305593316,252.1297153,0.00011812,2]
[330353733,1719305869117,155.04505144,9.999e-05,2]
[330353734,1719306309415,522.2632022,0.0001212,2]
[330353735,1719306311932,155.14440314,0.0001212,2]
[330353736,1719306361929,378.70086094,0.0001212,2]
[330353737,1719306427224,941.35,0.00010959,2]
[330353738,1719306437883,784.46,0.00010959,2]
[330353739,1719306448771,653.71,0.00010959,2]
[330353740,1719306459282,544.76,0.00010959,2]
[330353741,1719306469770,453.97,0.00010959,2]
[330353742,1719306480297,378.31,0.00010959,2]
[330353743,1719306491764,315.25,0.00010959,2]
[330353744,1719306502317,262.71,0.00010959,2]
[330353745,1719306512835,218.93,0.00010959,2]
[330353746,1719306514485,164.81209326,0.00013283,2]
[330353747,1719306523327,182.44,0.00010959,2]
[330353748,1719306531997,852.1471776,0.00013677,2]
[330353749,1719306546612,152.03,0.00010959,2]
[330353750,1719306557326,760.19,0.00010959,2]
[330353751,1719306574331,18338.90769902,0.00013837,2]
[330353752,1719306574557,6561.09230098,0.00013837,2]
[330353753,1719306590690,932.60140374,0.00013283,2]
[330353838,1719306638311,-1568.46393602,0.00014075,2]
[330353839,1719306638321,-524.47181177,0.00014176,2]
[330353840,1719306638330,-209.26241904,0.00014488,2]
[330353841,1719306638340,-2417.34559194,0.00015,2]
[330353842,1719306638349,-949.41094129,0.00015,2]
[330353843,1719306638359,-458.54129141,0.0001506,2]
[330353844,1719306638369,-229.0,0.00015466,2]
[330353845,1719306638379,-1329.2387037,0.00015467,2]
[330353846,1719306638388,-240.30215609,0.00015499,2]
[330353847,1719306638398,-308.12355769,0.000155,2]
[330353848,1719306638408,-300.0,0.00015591,2]
[330353849,1719306638418,-491.24375919,0.000156,2]
[330353850,1719306638427,-154.332206,0.00015602,2]
[330353851,1719306638436,-151.0,0.00015602,2]
[330353852,1719306638446,-251.06378,0.00015602,2]
[330353853,1719306638455,-251.06378,0.00015602,2]
[330353854,1719306638464,-275.620642,0.00015607,2]
[330353855,1719306638474,-275.620642,0.00015607,2]
[330353856,1719306638483,-1588.6733583,0.00015607,2]
[330353857,1719306638493,-1881.51303823,0.00015614,2]
[330353858,1719306638502,-151.0,0.00015614,2]
[330353859,1719306638511,-151.0,0.00015732,2]
[330353860,1719306638521,-158.523184,0.00015732,2]
[330353861,1719306638530,-251.06378,0.00015732,2]
[330353862,1719306638541,-251.06378,0.00015732,2]
[330353863,1719306638551,-151.0,0.000159,2]
[330353864,1719306638712,-151.0,0.000159,2]
[330353865,1719306638722,-151.0,0.000159,2]
[330353866,1719306638732,-151.0,0.000159,2]
[330353867,1719306638741,-251.06378,0.000159,2]
[330353868,1719306638751,-251.06378,0.000159,2]
[330353869,1719306638760,-275.620642,0.000159,2]
[330353870,1719306638770,-275.620642,0.000159,2]
[330353871,1719306638784,-154.08898,0.000159,2]
[330353872,1719306638794,-8000.0,0.000159,2]
[330353873,1719306638803,-205.6831939,0.00016169,2]
[330353874,1719306638813,-205.8057007,0.00016169,2]
[330353875,1719306638822,-205.8057007,0.00016169,2]
[330353876,1719306638831,-205.8057007,0.00016169,2]
[330353877,1719306638841,-205.8057007,0.00016169,2]
[330353878,1719306638850,-205.8057007,0.00016169,2]
[330353879,1719306638865,-205.0361494,0.00016169,2]
[330353880,1719306638875,-157.11737,0.00016302,2]
[330353881,1719306638885,-157.244439,0.00016302,2]
[330353882,1719306638894,-151.0,0.00016302,2]
[330353883,1719306638904,-275.620642,0.00016438,2]
[330353884,1719306638914,-275.620642,0.00016438,2]
[330353885,1719306638924,-151.0,0.00016438,2]
[330353886,1719306638934,-151.0,0.00016438,2]
[330353887,1719306638944,-251.520272,0.00016991,2]
[330353888,1719306638954,-251.06378,0.00016991,2]
[330353889,1719306638963,-251.06378,0.00016991,2]
[330353890,1719306638973,-2823.67048429,0.00017259,2]
[330353891,1719306638982,-876.0,0.00017616,2]
[330353892,1719306638991,-313.6,0.00017933,2]
[330353893,1719306639000,-173.9,0.00017933,2]
[330353894,1719306639010,-275.620642,0.0001798,2]
[330353895,1719306639020,-275.620642,0.0001798,2]
[330353896,1719306639030,-39945.34175505,0.00017981,2]
[330353897,1719306639041,-3262.3324387,0.00017981,2]
[330353898,1719306639051,-251.06378,0.00017981,2]
[330353899,1719306639061,-251.06378,0.00017981,2]
[330353900,1719306639072,-275.620642,0.00017981,2]
[330353901,1719306639081,-275.620642,0.00017981,2]
[330353902,1719306639091,-251.06378,0.00017999,2]
[330353903,1719306639102,-251.06378,0.00017999,2]
[330353904,1719306639112,-1000.0,0.00018,4]
[330353905,1719306639122,-825.99151127,0.00018,2]
[330353906,1719306639132,-2376.9469513,0.00018,2]
[330353907,1719306639142,-151.0,0.00018,2]
[330353908,1719306639152,-151.0,0.00018,2]
[330353909,1719306639162,-811.14465118,0.00018,2]
[330353910,1719306639174,-251.06378,0.00018,2]
[330353911,1719306639184,-251.06378,0.00018,2]
[330353912,1719306639194,-251.06378,0.00018,2]
[330353913,1719306639204,-251.06378,0.00018,2]
[330353914,1719306639214,-275.620642,0.00018,2]
[330353915,1719306639225,-275.620642,0.00018,2]
[330353916,1719306639234,-275.620642,0.00018,2]
[330353917,1719306639244,-275.620642,0.00018,2]
[330353918,1719306639253,-313.6,0.00018045,2]
[330353919,1719306639263,-173.9,0.00018045,2]
[330353920,1719306639274,-163.144788,0.00018081,2]
[330353921,1719306639285,-30000.0,0.00018081,2]
[330353922,1719306639296,-251.06378,0.00018081,2]
[330353923,1719306639306,-251.06378,0.00018081,2]
[330353924,1719306639317,-275.620642,0.00018081,2]
[330353925,1719306639326,-275.620642,0.00018081,2]
[330353926,1719306639337,-251.06378,0.00018156,2]
[330353927,1719306639346,-251.063785,0.00018156,2]
[330353928,1719306639355,-313.6,0.00018158,2]
[330353929,1719306639365,-173.9,0.00018158,2]
[330353930,1719306639374,-275.620642,0.00018158,2]
[330353931,1719306639383,-275.620642,0.00018158,2]
[330353932,1719306639393,-3262.33243868,0.00018186,2]
[330353933,1719306639402,-275.620642,0.00018186,2]
[330353934,1719306639412,-275.620637,0.00018186,2]
[330353935,1719306639421,-313.6,0.0001827,2]
[330353936,1719306639431,-173.9,0.0001827,2]
[330353937,1719306639441,-313.6,0.00018382,2]
[330353938,1719306639451,-173.9,0.00018382,2]
[330353939,1719306639460,-3262.33243868,0.00018391,2]
[330353940,1719306639470,-313.6,0.00018494,2]
[330353941,1719306639480,-173.9,0.00018494,2]
[330353942,1719306639490,-6263.8,0.000185,2]
[330353943,1719306639500,-3262.33243868,0.00018595,2]
[330353944,1719306639509,-313.6,0.00018607,2]
[330353945,1719306639519,-173.9,0.00018607,2]
[330353946,1719306639528,-313.6,0.00018719,2]
[330353947,1719306639540,-173.9,0.00018719,2]
[330353948,1719306639550,-2000.0,0.000188,2]
[330353949,1719306639559,-3262.33243868,0.000188,2]
[330353951,1719306639569,-86866.0828342,0.000188,2]
[330353953,1719306639579,-313.6,0.00018831,2]
[330353954,1719306639589,-173.9,0.00018831,2]
[330353955,1719306639599,-19024.15363885,0.000189,2]
[330354015,1719306793644,1821.82295926,0.000224,30]
[330354016,1719306795377,152.569174,0.00026,120]
[330354025,1719307063361,524.47181177,9.999e-05,2]
[330354034,1719307291882,525.30807915,0.0001212,2]
[330354040,1719307591252,5342.20537358,0.000199,30]
[330354172,1719307838413,-10850.0535969,0.00017618,2]
[330354173,1719307838424,-154.86836189,0.00018,2]
[330354174,1719307838434,-5926.83200992,0.00018,2]
[330354175,1719307838445,-154.88357083,0.00018,2]
[330354176,1719307838456,-811.14465118,0.00018,2]
[330354177,1719307838466,-500.0,0.00018,2]
[330354178,1719307838476,-5832.72106814,0.00018081,2]
[330354179,1719307838488,-299.1,0.00018114,2]
[330354180,1719307838498,-2417.34559194,0.00018121,2]
[330354181,1719307838508,-876.0,0.00018122,2]
[330354182,1719307838518,-299.1,0.0001821,2]